bitfinex/quotes_SOLUSD_20260208
["timestamp","ask_amount","ask_price","bid_price","bid_amount"]
[1770577556250,5.17286069,87.99,87.956,3.46848365]
[1770577556451,11.36505699,87.989,87.96,3.46848365]
[1770577559259,11.36505699,87.989,87.951,3.46848365]
[1770577559466,11.36505699,87.989,87.838,45.53816531]
[1770577559467,5.17286069,87.97,87.941,3.46848365]
[1770577560848,5.16976565,87.97,87.941,3.46848365]
[1770577561539,11.36518616,87.988,87.943,3.46848365]
[1770577563169,39.77815156,87.988,87.943,3.46848365]
[1770577563550,39.77815156,87.988,87.945,3.46848365]
[1770577566371,5.16976565,87.98,87.945,3.46848365]
[1770577571973,11.36634878,87.979,87.945,3.46848365]
[1770577575076,11.36634878,87.979,87.947,3.46848365]
[1770577579363,11.36634878,87.979,87.91,102.6]
[1770577579364,5.16976565,87.99,87.949,3.46848365]
[1770577579876,5.16976565,87.98,87.949,3.46848365]
[1770577581565,5.16976565,87.99,87.951,3.46848365]
[1770577583683,5.16976565,87.99,87.953,3.46848365]
[1770577588690,5.16976565,88.0,87.954,11.36957955]
[1770577588991,5.16976565,88.0,87.956,3.46848365]
[1770577590770,11.36376549,87.999,87.958,3.46848365]
[1770577593268,11.36310473,88.005,87.96,3.46848365]
[1770577595284,11.36505699,87.989,87.958,11.36904525]
[1770577595686,11.36505699,87.989,87.961,11.36867475]
[1770577595882,28.40747684,88.005,87.962,3.46848365]
[1770577595883,11.36453152,87.994,87.962,3.46848365]
[1770577596183,5.16976565,87.99,87.962,3.46848365]
[1770577597497,11.36505699,87.989,87.962,3.46848365]
[1770577597677,11.36505699,87.989,87.957,14.06848365]
[1770577597879,11.36505699,87.989,87.958,3.46848365]
[1770577598492,5.16976565,87.98,87.953,3.46848365]
[1770577602575,5.16976565,87.99,87.953,3.46848365]
[1770577602795,11.36376549,87.999,87.955,3.46848365]
[1770577602978,11.36376549,87.999,87.956,3.46848365]
[1770577604490,5.16976565,88.02,87.963,3.46848365]
[1770577604796,11.36118338,88.019,87.965,3.46848365]
[1770577605402,5.16976565,88.01,87.965,3.46848365]
[1770577605584,5.16976565,88.0,87.965,3.46848365]
[1770577608211,11.36306137,88.005,87.967,3.46848365]
[1770577608389,5.16976565,88.01,87.967,3.46848365]
[1770577609298,5.16976565,88.02,87.969,3.46848365]
[1770577609808,5.16976565,88.02,87.971,3.46848365]
[1770577610809,5.16976565,88.03,87.973,3.46848365]
[1770577611002,5.16976565,88.02,87.973,3.46848365]
[1770577611202,5.16976565,88.02,87.974,10.6]
[1770577611511,5.16976565,88.02,87.975,3.46848365]
[1770577613215,5.16976565,88.01,87.977,3.46848365]
[1770577614496,5.16976565,88.0,87.977,3.46848365]
[1770577615412,16.53347014,88.0,87.977,3.46848365]
[1770577615617,16.53347014,88.0,87.972,3.46848365]
[1770577621517,5.16976565,88.01,87.972,3.46848365]
[1770577621715,5.16976565,88.01,87.974,3.46848365]
[1770577622927,11.36247429,88.009,87.974,3.46848365]
[1770577627824,11.36197017,88.013,87.976,3.46848365]
[1770577628213,5.16593661,88.01,87.976,3.46848365]
[1770577632328,5.16593661,88.02,87.978,3.46848365]
[1770577632507,11.36118338,88.019,87.978,3.46848365]
[1770577632707,5.16593661,88.01,87.978,3.46848365]
[1770577635727,5.16593661,88.02,87.98,3.46848365]
[1770577638134,5.16593661,88.0,87.974,3.46848365]
[1770577639627,5.16593661,88.01,87.976,3.46848365]
[1770577639817,5.16593661,88.02,87.976,3.46848365]
[1770577643122,5.16593661,88.01,87.978,3.46848365]
[1770577645333,11.36247429,88.009,87.98,3.46848365]
[1770577648718,11.36247429,88.009,87.969,10.6]
[1770577648719,5.16593661,88.0,87.969,10.6]
[1770577649038,5.16593661,87.98,87.963,3.46848365]
[1770577650035,5.16593661,87.97,87.911,3.46848365]
[1770577650241,5.16593661,87.96,87.932,3.46848365]
[1770577650624,11.36634878,87.979,87.945,3.46848365]
[1770577651016,5.16593661,87.97,87.945,3.46848365]
[1770577651224,5.16593661,87.96,87.945,3.46848365]
[1770577652234,16.5347707,87.96,87.945,3.46848365]
[1770577654722,16.5347707,87.96,87.93,3.46848365]
[1770577655564,5.16593661,87.96,87.93,3.46848365]
[1770577655730,11.36811442,87.966,87.93,3.46848365]
[1770577656043,5.16593661,87.96,87.93,3.46848365]
[1770577656946,5.16593661,87.96,87.932,3.46848365]
[1770577660448,5.16593661,87.97,87.934,3.46848365]
[1770577660643,5.16593661,87.98,87.934,3.46848365]
[1770577660841,5.16593661,87.98,87.935,3.46848365]
[1770577661153,28.40435163,88.015,87.94,5.16593661]
[1770577661355,5.16593661,88.0,87.951,3.46848365]
[1770577661653,11.36131245,88.018,87.971,3.46848365]
[1770577662647,28.39706718,88.038,87.991,3.46848365]
[1770577662840,5.16593661,88.03,87.991,3.46848365]
[1770577663148,0.2,88.04,88.001,3.46848365]
[1770577663959,0.2,88.04,88.011,3.46848365]
[1770577664336,11.35604561,88.059,88.011,3.36848365]
[1770577664533,5.36593661,88.06,88.021,3.36848365]
[1770577664534,0.2,88.06,88.021,3.36848365]
[1770577664735,16.72192569,88.06,88.021,3.36848365]
[1770577664934,0.17535591,88.059,88.021,3.36848365]
[1770577666739,11.35615162,88.058,88.022,11.36079616]
[1770577666970,11.35615162,88.058,88.023,3.4057324]
[1770577667874,11.35615162,88.058,88.01,5.16593661]
[1770577667875,0.17520868,88.057,88.011,3.4057324]
[1770577668076,5.16593661,88.03,88.002,3.4057324]
[1770577669350,16.52452713,88.04,88.004,3.4057324]
[1770577669864,16.69936232,88.04,88.004,3.4057324]
[1770577671043,11.35873145,88.038,88.004,3.4057324]
[1770577671245,0.17451339,88.029,87.981,3.4057324]
[1770577672151,5.16593661,88.03,87.996,3.4057324]
[1770577672663,11.35787904,88.045,88.006,3.4057324]
[1770577673061,5.16593661,88.04,88.008,3.4057324]
[1770577673449,5.16593661,88.04,88.007,11.3627325]
[1770577673450,0.2,88.06,88.021,3.4057324]
[1770577673745,5.36593661,88.06,88.021,3.4057324]
[1770577674963,16.72183782,88.06,88.021,3.4057324]
[1770577675754,5.36593661,88.06,88.023,3.4057324]
[1770577676956,0.17265873,88.059,88.023,3.4057324]
[1770577677160,5.33859534,88.05,88.023,3.4057324]
[1770577677363,0.17265873,88.049,88.023,3.4057324]
[1770577677764,5.16593661,88.05,88.023,3.4057324]
[1770577678152,11.3573124,88.049,88.023,3.4057324]
[1770577678677,5.16593661,88.05,88.023,3.4057324]
[1770577679473,11.35672008,88.054,88.025,3.4057324]
[1770577679968,0.17177851,88.057,88.025,3.4057324]
[1770577680567,11.35602266,88.059,88.027,3.4057324]
[1770577680769,5.36593661,88.06,88.027,3.4057324]
[1770577680770,0.2,88.06,88.027,3.4057324]
[1770577681969,5.36593661,88.06,88.027,3.4057324]
[1770577682167,0.2,88.06,88.029,3.4057324]
[1770577684179,11.5559158,88.06,88.029,3.4057324]
[1770577684382,16.71444828,88.06,88.029,3.4057324]
[1770577684682,11.5559158,88.06,88.029,3.4057324]
[1770577685054,11.5559158,88.06,88.031,3.4057324]
[1770577685360,0.17037761,88.059,88.024,3.4057324]
[1770577686578,11.35615162,88.058,88.024,3.4057324]
[1770577689978,11.52520695,88.058,88.024,3.4057324]
[1770577690884,5.15853248,88.04,88.012,3.4057324]
[1770577691061,0.16879991,88.039,88.012,3.4057324]
[1770577691582,0.16879991,88.037,88.012,3.4057324]
[1770577692787,0.16854743,88.029,88.003,3.4057324]
[1770577693711,5.15853248,88.03,88.005,3.4057324]
[1770577694578,11.35919054,88.035,88.005,3.4057324]
[1770577695684,16.51839913,88.03,88.005,3.4057324]
[1770577700368,0.16617676,88.029,88.005,3.4057324]
[1770577700573,11.36002181,88.028,88.005,3.4057324]
[1770577700776,0.16595441,88.019,87.996,3.36848365]
[1770577701894,5.15853248,88.03,88.005,3.36848365]
[1770577702201,5.15853248,88.04,88.005,3.36848365]
[1770577702882,5.32404982,88.04,88.005,3.36848365]
[1770577703296,16.68260109,88.04,88.007,3.36848365]
[1770577703517,0.16551734,88.039,88.007,3.36848365]
[1770577705509,0.16551734,88.039,87.991,11.36479867]
[1770577705510,11.35489291,88.068,88.021,3.36848365]
[1770577705805,0.16509026,88.076,88.021,3.36848365]
[1770577705806,11.35541127,88.064,88.021,3.36848365]
[1770577706386,11.35481464,88.069,88.021,3.36848365]
[1770577706588,0.16509026,88.076,88.031,3.36848365]
[1770577707503,11.35528082,88.065,88.033,3.36848365]
[1770577707700,11.35451872,88.071,88.033,3.36848365]
[1770577708204,11.35387759,88.076,88.033,3.36848365]
[1770577708508,11.35387759,88.076,88.042,3.33803284]
[1770577710109,11.35305737,88.082,88.043,11.35808638]
[1770577710310,11.7171221,88.082,88.044,3.33803284]
[1770577712706,11.71563246,88.089,88.051,3.33803284]
[1770577712914,11.3521552,88.089,88.051,3.33803284]
[1770577714009,11.3521552,88.089,88.053,3.33803284]
[1770577715606,11.3521552,88.089,88.055,3.33803284]
[1770577717290,11.71503647,88.089,88.055,3.33803284]
[1770577718911,11.71503647,88.089,88.056,11.35640955]
[1770577719116,11.71503647,88.089,88.057,3.33803284]
[1770577719916,11.3521552,88.089,88.057,3.33803284]
[1770577720094,0.2,88.09,88.061,3.33803284]
[1770577720300,0.2,88.09,88.071,3.33803284]
[1770577720610,0.2,88.09,88.073,3.33803284]
[1770577723322,0.2,88.09,88.075,3.33803284]
[1770577723620,0.2,88.1,88.076,3.33803284]
[1770577725303,0.2,88.1,88.081,3.30662829]
[1770577726419,0.2,88.1,88.083,3.30662829]
[1770577726621,0.56150641,88.099,88.044,3.30662829]
[1770577726822,0.56137746,88.079,88.048,3.30662829]
[1770577726999,0.56137746,88.069,88.041,3.30662829]
[1770577728627,0.56124999,88.067,88.041,3.30662829]
[1770577728924,0.56060474,88.059,88.026,11.36024727]
[1770577729224,0.56060474,88.059,88.027,3.30662829]
[1770577730123,11.91611852,88.058,88.027,3.30662829]
[1770577730517,5.15853248,88.07,88.029,3.30662829]
[1770577731023,0.55933638,88.069,88.029,3.30662829]
[1770577731239,0.55933638,88.059,88.029,3.30662829]
[1770577731926,5.15853248,88.06,88.029,3.30662829]
[1770577732125,11.3550388,88.067,88.03,11.35976371]
[1770577732429,11.35373962,88.077,88.031,3.30662829]
[1770577732722,0.55809699,88.085,88.041,3.30662829]
[1770577732931,5.15853248,88.09,88.041,3.30662829]
[1770577733111,11.35230349,88.088,88.041,3.30662829]
[1770577734144,11.35230349,88.088,88.04,5.15853248]
[1770577734145,5.35853248,88.11,88.061,3.30662829]
[1770577734426,0.2,88.11,88.071,3.30662829]
[1770577735331,1e-08,88.102,88.081,3.30662829]
[1770577736425,1e-08,88.102,88.083,3.30662829]
[1770577738034,1e-08,88.102,88.09,5.15853248]
[1770577738218,0.2,88.11,88.09,5.15853248]
[1770577738219,1e-08,88.11,88.092,3.30662829]
[1770577738417,1e-08,88.11,88.094,3.30662829]
[1770577740724,1e-08,88.11,88.096,3.30662829]
[1770577741713,0.55286084,88.109,88.077,11.35359599]
[1770577741922,0.55286084,88.109,88.071,3.30662829]
[1770577742121,0.55286084,88.099,88.071,3.30662829]
[1770577742337,0.55286084,88.079,88.048,3.30662829]
[1770577742637,0.55286084,88.079,88.03,5.15853248]
[1770577742638,0.55286084,88.079,88.051,14.66368272]
[1770577742834,0.55286084,88.079,88.052,3.30662829]
[1770577744041,16.51046654,88.08,88.03,5.1570592]
[1770577744042,0.55176936,88.077,88.043,3.30662829]
[1770577744727,0.55176936,88.077,88.044,11.35795738]
[1770577744929,0.55176936,88.077,88.045,3.30662829]
[1770577745138,11.35383078,88.076,88.045,3.30662829]
[1770577746744,7.29498173,88.088,88.047,3.30662829]
[1770577746930,7.29498173,88.088,88.051,3.30662829]
[1770577747845,7.29498173,88.088,88.052,3.30662829]
[1770577748242,7.29498173,88.088,88.051,10.6]
[1770577748243,7.29498173,88.088,88.054,3.30662829]
[1770577750430,2.0,123.0,88.071,3.30662829]
[1770577750431,0.54864221,88.119,88.071,3.30662829]
[1770577751345,11.349483,88.11,88.071,3.30662829]
[1770577751946,16.5065422,88.11,88.073,3.30662829]
[1770577752248,0.54764707,88.109,88.073,3.30662829]
[1770577752748,11.349483,88.11,88.073,3.30662829]
[1770577752946,16.5065422,88.11,88.073,3.30662829]
[1770577753148,5.1570592,88.1,88.072,11.35434644]
[1770577753349,0.54715806,88.089,88.057,3.30662829]
[1770577754046,0.54715806,88.089,88.06,11.35586119]
[1770577754245,0.54715806,88.089,88.061,3.30662829]
[1770577755228,0.54525754,88.087,88.061,3.30662829]
[1770577755957,0.54479598,88.079,88.054,3.16848365]
[1770577759960,0.54300213,88.077,88.054,3.16848365]
[1770577764560,11.35357296,88.078,88.054,3.16848365]
[1770577768655,11.35357296,88.078,88.03,5.1570592]
[1770577768656,0.53965379,88.09,88.056,3.16848365]
[1770577769060,5.1570592,88.08,88.056,3.16848365]
[1770577769361,5.1570592,88.08,88.051,3.16848365]
[1770577770261,11.35344406,88.079,88.051,3.16848365]
[1770577770563,11.89230801,88.079,88.051,3.16848365]
[1770577771264,11.35344406,88.079,88.051,3.16848365]
[1770577772359,11.35370187,88.077,88.051,3.16848365]
[1770577773966,5.1570592,88.08,88.051,3.16848365]
[1770577774554,11.35344406,88.079,88.051,3.16848365]
[1770577775970,11.35344406,88.079,88.053,3.16848365]
[1770577777662,7.30049567,88.097,88.037,10.6]
[1770577777663,11.35282241,88.084,88.055,3.16848365]
[1770577777869,0.53588093,88.093,88.055,3.16848365]
[1770577778570,11.35125317,88.096,88.055,3.16848365]
[1770577779355,7.30049567,88.097,88.055,3.16848365]
[1770577779957,7.30049567,88.097,88.057,3.16848365]
[1770577783053,7.30049567,88.097,88.059,3.16848365]
[1770577783454,7.30049567,88.097,88.061,3.16848365]
[1770577783660,1e-08,88.11,88.071,3.15539292]
[1770577785056,1e-08,88.11,88.058,39.74653068]
[1770577785057,3.27305067,88.108,88.073,3.41178075]
[1770577786378,3.27305067,88.106,88.075,3.41178075]
[1770577787671,3.27305067,88.106,88.077,3.41178075]
[1770577789576,3.27305067,88.106,88.079,3.41178075]
[1770577789772,1e-08,88.11,88.079,3.41178075]
[1770577789974,1e-08,88.11,88.081,3.41178075]
[1770577791855,3.27305067,88.109,88.081,3.41178075]
[1770577792679,3.27305067,88.099,88.046,3.41178075]
[1770577792975,3.27305067,88.099,88.027,10.6]
[1770577792976,3.27305067,88.079,88.048,3.41178075]
[1770577793662,3.27305067,88.086,88.048,3.41178075]
[1770577794070,3.27305067,88.096,88.051,3.41178075]
[1770577794274,14.62356224,88.102,88.061,3.41178075]
[1770577794470,3.27305067,88.102,88.061,3.41178075]
[1770577796188,3.27305067,88.102,88.063,3.41178075]
[1770577799782,3.27305067,88.102,88.065,3.41178075]
[1770577800569,3.27305067,88.099,88.065,3.41178075]
[1770577803579,3.27305067,88.099,88.067,3.41178075]
[1770577804177,11.35099548,88.098,88.067,3.41178075]
[1770577804481,3.27305067,88.097,88.067,3.41178075]
[1770577806090,14.6234997,88.103,88.069,3.41178075]
[1770577806590,11.35044903,88.103,88.069,3.41178075]
[1770577806893,3.27305067,88.102,88.069,3.41178075]
[1770577807072,3.27305067,88.099,88.069,3.41178075]
[1770577808093,3.27305067,88.099,88.071,3.41178075]
[1770577809776,3.27305067,88.099,88.073,3.41178075]
[1770577810183,3.27305067,88.097,88.073,3.41178075]
[1770577810390,3.27305067,88.097,88.055,10.6]
[1770577810391,3.27305067,88.097,88.066,3.41178075]
[1770577810585,11.35099548,88.098,88.055,11.35653422]
[1770577810586,3.27305067,88.079,88.055,11.35653422]
[1770577810774,3.27305067,88.079,88.056,3.41178075]
[1770577814584,3.27305067,88.077,88.048,3.41178075]
[1770577815899,3.27305067,88.077,88.031,10.6]
[1770577815900,3.30111121,88.069,88.036,3.23960334]
[1770577816098,3.30111121,88.069,88.038,3.23960334]
[1770577816282,3.30111121,88.069,88.04,3.17567858]
[1770577816483,3.25235199,88.059,88.031,3.17567858]
[1770577816690,5.1550985,88.05,88.016,3.17567858]
[1770577816891,3.25235199,88.055,88.016,3.17567858]
[1770577817879,5.1550985,88.05,88.018,3.17567858]
[1770577818080,3.25235199,88.049,88.018,3.17567858]
[1770577820013,3.25235199,88.048,88.0,5.1550985]
[1770577820296,3.25235199,88.039,88.005,14.53863453]
[1770577821184,3.25235199,88.029,87.999,3.17567858]
[1770577821994,3.25235199,88.029,87.983,3.17567858]
[1770577822299,3.25235199,88.027,87.985,3.17567858]
[1770577824410,3.25235199,88.025,87.987,3.17567858]
[1770577826297,3.25235199,88.025,87.989,3.17567858]
[1770577829214,3.25235199,88.024,87.984,28.41425713]
[1770577829424,3.25235199,88.019,87.981,11.3660904]
[1770577829588,3.25235199,88.009,87.981,11.3660904]
[1770577831192,3.25235199,88.009,87.975,11.36686558]
[1770577831389,3.25235199,88.007,87.975,11.36686558]
[1770577831589,11.36260339,88.008,87.975,11.36686558]
[1770577831590,3.25235199,87.999,87.975,11.36686558]
[1770577833203,3.25235199,87.999,87.975,2.50694106]
[1770577833413,5.1550985,88.04,87.97,0.1]
[1770577833414,3.25235199,88.022,87.981,2.50694106]
[1770577833595,3.25235199,88.022,87.991,2.50694106]
[1770577834408,3.25235199,88.049,88.001,2.50348452]
[1770577834609,3.25235199,88.039,88.001,2.50348452]
[1770577835619,3.25235199,88.037,88.002,11.3633781]
[1770577836000,3.25235199,88.037,88.002,13.86502202]
[1770577836403,3.25235199,88.037,88.003,2.50164392]
[1770577837717,3.25235199,88.037,88.004,11.36311985]
[1770577837925,3.25235199,88.029,88.004,13.86296522]
[1770577839422,3.25235199,88.028,87.997,2.49896155]
[1770577840510,3.25235199,88.009,87.974,11.36689453]
[1770577840713,3.25235199,87.999,87.968,2.49808789]
[1770577841022,3.25235199,87.999,87.972,11.36722619]
[1770577842310,3.25235199,87.997,87.967,11.36785354]
[1770577843004,3.25235199,87.989,87.967,11.36785354]
[1770577843703,3.25235199,87.979,87.96,0.1]
[1770577844328,3.25235199,87.969,87.944,11.3707813]
[1770577845224,3.25235199,87.969,87.937,11.37167734]
[1770577846024,3.24016219,87.967,87.935,2.69305266]
[1770577846346,3.24016219,87.959,87.928,2.69224687]
[1770577846620,3.24016219,87.949,87.927,11.37297325]
[1770577846823,3.24016219,87.949,87.917,11.37435251]
[1770577847228,39.78719533,87.968,87.91,0.1]
[1770577847229,3.24016219,87.939,87.91,0.1]
[1770577847410,3.24016219,87.929,87.91,0.1]
[1770577849627,3.24016219,87.928,87.91,0.1]
[1770577849928,4.51123972,87.927,87.91,0.1]
[1770577850526,28.42293369,87.958,87.91,0.1]
[1770577850527,3.31458997,87.948,87.91,5.2550985]
[1770577851218,3.31458997,87.948,87.92,5.1550985]
[1770577851418,3.31458997,87.956,87.92,5.1550985]
[1770577852130,3.31458997,87.955,87.91,5.2550985]
[1770577852311,3.31458997,87.949,87.91,0.1]
[1770577852506,3.31458997,87.949,87.917,11.37428031]
[1770577853431,3.31458997,87.949,87.921,11.37384697]
[1770577854513,3.31458997,87.949,87.91,0.1]
[1770577854724,3.31458997,87.947,87.91,0.1]
[1770577855027,3.31458997,87.947,87.91,5.2550985]
[1770577855539,7.26077047,87.954,87.92,5.1550985]
[1770577856027,3.31458997,87.967,87.93,5.1550985]
[1770577856732,3.31458997,87.967,87.931,39.80393716]
[1770577857732,3.31458997,87.976,87.95,5.1550985]
[1770577858712,3.31458997,87.976,87.931,28.43138369]
[1770577858930,3.31458997,87.969,87.931,28.43138369]
[1770577860139,3.31458997,87.986,87.94,5.1550985]
[1770577860830,3.31458997,87.986,87.941,39.79941096]
[1770577861033,3.31458997,87.986,87.95,5.1550985]
[1770577861233,3.31458997,87.986,87.941,39.79941096]
[1770577862526,3.31458997,87.969,87.941,11.37126027]
[1770577862722,3.31458997,87.969,87.936,11.37182911]
[1770577863036,11.36777009,87.968,87.929,28.43196823]
[1770577863227,3.31458997,87.967,87.922,11.37371761]
[1770577863941,3.31458997,87.967,87.922,39.80801164]
[1770577867026,3.31458997,87.959,87.922,11.37371761]
[1770577867544,3.31458997,87.959,87.92,5.17035064]
[1770577868438,3.31458997,87.957,87.92,5.17035064]
[1770577869545,3.31458997,87.957,87.921,39.80846441]
[1770577871222,3.31458997,87.957,87.911,10.6]
[1770577871422,3.31458997,87.939,87.915,11.3746228]
[1770577873135,3.31458997,87.939,87.91,0.1]
[1770577873342,3.31458997,87.929,87.91,0.1]
[1770577874225,7.23364614,87.954,87.91,0.1]
[1770577874226,3.31458997,87.937,87.91,5.27035064]
[1770577874542,3.31458997,87.947,87.91,5.27035064]
[1770577875539,28.42124509,87.963,87.9,39.91787898]
[1770577875540,3.26458997,87.938,87.901,0.07590635]
[1770577875722,7.23576347,87.952,87.9,0.1]
[1770577875723,3.26458997,87.949,87.9,0.1]
[1770577875923,3.26458997,87.939,87.9,0.1]
[1770577876324,3.26458997,87.939,87.901,0.07499739]
[1770577877428,3.26458997,87.929,87.901,11.37643485]
[1770577877954,3.26458997,87.929,87.9,0.1]
[1770577878356,7.23211336,87.939,87.911,0.07321066]
[1770577878530,7.23211336,87.939,87.92,5.17035064]
[1770577879450,7.23211336,87.939,87.921,11.37384697]
[1770577879747,7.23211336,87.939,87.922,0.07233266]
[1770577879954,7.1597807,87.939,87.922,0.07233266]
[1770577880140,7.1597807,87.939,87.93,5.17035064]
[1770577881756,3.3007563,87.961,87.931,11.37255347]
[1770577884256,3.3007563,87.959,87.925,11.37321498]
[1770577884557,3.3007563,87.959,87.929,11.37276285]
[1770577885254,3.3007563,87.959,87.9,0.1]
[1770577885255,3.3007563,87.959,87.908,28.43855715]
[1770577885456,3.3007563,87.949,87.91,5.17035064]
[1770577886160,3.3007563,87.949,87.92,11.37393115]
[1770577886866,3.3007563,87.949,87.911,11.37514076]
[1770577890670,3.3007563,87.947,87.911,11.37514076]
[1770577890850,3.3007563,87.939,87.909,11.37529132]
[1770577891173,3.3007563,87.939,87.911,11.37514076]
[1770577892254,3.3007563,87.952,87.911,11.37514076]
[1770577893239,3.3007563,87.95,87.911,39.81299267]
[1770577893965,3.3007563,87.949,87.911,11.37514076]
[1770577901464,3.3007563,87.949,87.901,10.6]
[1770577901465,3.3007563,87.949,87.92,5.17035064]
[1770577903371,3.3007563,87.949,87.92,16.54420101]
[1770577903773,7.2251562,87.958,87.94,5.17035064]
[1770577904267,3.3007563,87.967,87.95,5.17035064]
[1770577904471,3.3007563,87.967,87.94,5.17035064]
[1770577905259,3.3007563,87.967,87.951,11.36996736]
[1770577905651,3.3007563,87.967,87.941,11.37116783]
[1770577905859,3.3007563,87.967,87.945,11.37066633]
[1770577906469,3.3007563,87.967,87.939,11.37147481]
[1770577906771,3.3007563,87.965,87.93,5.17035064]
[1770577906976,3.3007563,87.965,87.94,5.17035064]
[1770577907773,3.3007563,87.965,87.941,11.37126027]
[1770577909668,3.3007563,87.981,87.95,5.17035064]
[1770577909858,3.3007563,87.981,87.951,11.36996736]
[1770577910771,5.17035064,87.98,87.951,11.36996736]
[1770577911072,3.3007563,87.979,87.951,11.36996736]
[1770577911453,3.3007563,87.979,87.925,10.6]
[1770577911655,3.3007563,87.949,87.92,11.37395668]
[1770577911872,3.3007563,87.949,87.911,11.37514076]
[1770577912664,3.3007563,87.949,87.92,5.17035064]
[1770577914371,3.3007563,87.949,87.921,11.37384697]
[1770577914570,11.3703552,87.948,87.916,11.37446005]
[1770577914776,3.3007563,87.947,87.916,11.37446005]
[1770577915682,3.3007563,87.947,87.92,11.37392589]
[1770577916086,3.3007563,87.947,87.915,11.37452086]
[1770577916265,3.3007563,87.938,87.9,28.54110397]
[1770577916765,3.3007563,87.938,87.9,44.97501888]
[1770577916964,3.3007563,87.938,87.91,5.17035064]
[1770577917963,3.3007563,87.954,87.91,5.17035064]
[1770577918281,3.3007563,87.954,87.92,5.17035064]
[1770577918483,3.3007563,87.954,87.921,11.37384697]
[1770577918680,3.3007563,87.971,87.94,5.17035064]
[1770577918901,3.3007563,87.971,87.93,5.17035064]
[1770577919062,3.3007563,87.969,87.93,5.17035064]
[1770577919582,3.3007563,87.959,87.921,39.80846441]
[1770577921180,3.3007563,87.949,87.916,11.37439708]
[1770577921680,3.3007563,87.949,87.9,5.17035064]
[1770577921871,3.3007563,87.949,87.912,11.37499738]
[1770577922263,3.3007563,87.949,87.916,11.37444233]
[1770577922463,3.3007563,87.949,87.911,11.37504272]
[1770577923281,3.3007563,87.939,87.901,11.37643485]
[1770577923878,3.3007563,87.929,87.89,0.1]
[1770577924079,3.3007563,87.909,87.89,0.1]
[1770577926077,56.85177604,87.948,87.89,0.1]
[1770577926078,3.3007563,87.925,87.89,5.27035064]
[1770577926876,3.3007563,87.925,87.89,5.27497576]
[1770577927790,3.3007563,87.939,87.9,5.17497576]
[1770577928884,3.3007563,87.939,87.91,5.17497576]
[1770577929468,3.3007563,87.946,87.91,5.17497576]
[1770577929665,3.3007563,87.946,87.921,11.37384697]
[1770577929870,5.17497576,87.96,87.921,11.37384697]
[1770577930179,3.3007563,87.959,87.93,5.17497576]
[1770577930581,3.3007563,87.959,87.921,39.80846441]
[1770577930891,3.3007563,87.949,87.916,11.37446212]
[1770577932075,3.3007563,87.949,87.91,33.61295996]
[1770577932076,3.3007563,87.949,87.911,11.37514076]
[1770577937495,3.3007563,87.957,87.92,13.8546192]
[1770577937876,3.3007563,87.957,87.93,13.8546192]
[1770577939195,3.3007563,87.957,87.911,28.43785191]
[1770577939380,3.3007563,87.957,87.93,13.8546192]
[1770577940692,3.3007563,87.957,87.931,11.37255347]
[1770577942899,3.3007563,87.957,87.926,28.43287369]
[1770577946307,3.3007563,87.957,87.93,13.8546192]
[1770577946605,3.3007563,87.963,87.93,13.8546192]
[1770577949313,3.3007563,87.963,87.931,11.37255347]
[1770577950713,3.3007563,87.963,87.94,13.8546192]
[1770577951013,3.3007563,87.969,87.94,13.8546192]
[1770577951607,3.3007563,87.969,87.933,11.37229481]
[1770577951908,3.3007563,87.969,87.933,39.80303184]
[1770577958922,3.3007563,87.969,87.94,5.16917082]
[1770577960119,3.3007563,87.979,87.94,5.16917082]
[1770577960521,3.3007563,87.979,87.935,10.6]
[1770577961106,3.3007563,87.977,87.936,11.37190684]
[1770577962217,3.3007563,87.977,87.94,5.16917082]
[1770577963616,3.3007563,87.977,87.95,5.16917082]
[1770577964919,3.3007563,87.977,87.951,11.36996736]
[1770577968523,3.3007563,87.977,87.94,5.16917082]
[1770577970715,3.3007563,87.977,87.941,11.37126027]
[1770577977237,3.3007563,87.977,87.941,39.79941096]
[1770577977616,3.3007563,87.977,87.95,5.16917082]
[1770577977827,5.16917082,87.99,87.96,5.16917082]
[1770577977828,3.3007563,87.989,87.96,5.16917082]
[1770577978031,3.3007563,87.989,87.95,5.16917082]
[1770577978948,3.3007563,87.989,87.96,5.16917082]
[1770577979835,3.3007563,87.991,87.97,5.16917082]
[1770577980134,3.3007563,87.991,87.96,5.16917082]
[1770577980433,3.3007563,88.009,87.98,5.16917082]
[1770577980739,3.3007563,88.024,87.99,5.16917082]
[1770577980924,3.3007563,88.024,87.98,5.16917082]
[1770577981129,3.3007563,88.019,87.981,11.3660904]
[1770577983634,5.16917082,88.01,87.981,11.3660904]
[1770577983826,3.3007563,87.999,87.956,28.42302476]
[1770577985939,3.3007563,87.999,87.96,5.16917082]
[1770577986136,3.3007563,88.008,87.97,5.16917082]
[1770577987341,3.3007563,88.008,87.981,11.3660904]
[1770577991741,3.3007563,88.008,87.975,28.41716303]
[1770577993249,3.3007563,88.014,87.98,5.16446176]
[1770577994137,3.3007563,88.031,88.0,5.16446176]
[1770577994448,3.3007563,88.031,87.99,5.16446176]